fUST/lending_fUST_20240413
["ID","MTS","AMOUNT","RATE_DAILY","PERIOD"]
[322440019,1713003626635,-3792.11,0.00035616,7]
[322440020,1713003626656,-500.0,0.00035616,7]
[322440021,1713003626680,-300.0,0.00035616,7]
[322440022,1713003626703,-500.0,0.00035616,7]
[322440023,1713003626724,-1452.1,0.00035616,7]
[322440024,1713003626746,-500.0,0.00035616,7]
[322440025,1713003626768,-1051.51,0.00035616,7]
[322440026,1713003626790,-500.0,0.00035616,7]
[322440027,1713003626812,-500.0,0.00035616,7]
[322440028,1713003626840,-500.0,0.00035616,7]
[322440029,1713003626867,-501.22741325,0.00035616,7]
[322440030,1713003626891,-500.0,0.00035616,7]
[322440031,1713003626915,-500.0,0.00035616,7]
[322440032,1713003626936,-500.0,0.00035616,7]
[322440033,1713003626960,-2074.65,0.00035616,7]
[322440034,1713003626982,-500.0,0.00035616,7]
[322440035,1713003627004,-500.0,0.00035616,7]
[322440036,1713003627025,-500.0,0.00035616,7]
[322440037,1713003627047,-500.0,0.00035616,7]
[322440038,1713003627068,-500.0,0.00035616,7]
[322440039,1713003627090,-1433.13,0.00035616,7]
[322440040,1713003627118,-1187.92,0.00035616,7]
[322440041,1713003627139,-500.0,0.00035616,7]
[322440042,1713003627164,-7083.02,0.00035616,7]
[322440043,1713003627186,-500.0,0.00035616,7]
[322440044,1713003627208,-500.0,0.00035616,7]
[322440045,1713003627230,-838.86,0.00035616,7]
[322440046,1713003627251,-2582.13,0.00035616,7]
[322440047,1713003627272,-500.0,0.00035616,7]
[322440048,1713003627294,-521.6243509,0.00035616,7]
[322440049,1713003627315,-507.36235383,0.00035616,7]
[322440050,1713003627340,-200.75875524,0.00035616,7]
[322440051,1713003627362,-2818.01,0.00035616,7]
[322440052,1713003627383,-803.88,0.00035616,7]
[322440053,1713003627405,-500.0,0.00035616,7]
[322440054,1713003627428,-539.75695291,0.00035616,7]
[322440055,1713003627450,-2850.48,0.00035616,7]
[322440056,1713003627471,-500.0,0.00035616,7]
[322440057,1713003627492,-505.66696559,0.00035616,7]
[322440058,1713003627513,-500.0,0.00035616,7]
[322440059,1713003627537,-500.0,0.00035616,7]
[322440060,1713003627558,-501.92387107,0.00035616,7]
[322440061,1713003627581,-500.0,0.00035616,7]
[322440062,1713003627602,-415.38233686,0.00035616,7]
[322440063,1713003627622,-500.0,0.00035616,7]
[322440064,1713003627644,-500.0,0.00035616,7]
[322440065,1713003627665,-505.51477599,0.00035616,7]
[322440066,1713003627687,-500.0,0.00035616,7]
[322440067,1713003627709,-945.93,0.00035616,7]
[322440068,1713003627732,-287.09032927,0.00035616,7]
[322440077,1713004087422,-1508.053041,0.00035616,120]
[322440084,1713004138313,-502.85541641,0.00035616,14]
[322440133,1713004238290,-185.78464117,0.00027373,2]
[322440135,1713004238301,-163.8615962,0.00027374,2]
[322440137,1713004238311,-154.98450155,0.00027375,2]
[322440139,1713004238320,-159.858928,0.00027397,2]
[322440141,1713004238329,-227.53290428,0.00033516,2]
[322440143,1713004238339,-153.05200403,0.00035515,7]
[322440145,1713004238348,-1940.84806292,0.00035614,4]
[322440146,1713004238357,-268.59221486,0.00035614,4]
[322440148,1713004238366,-3314.97282506,0.00035614,4]
[322440150,1713004238376,-1854.77424007,0.00035614,4]
[322440152,1713004238385,-155.14148889,0.00035614,4]
[322440154,1713004238394,-301.81926402,0.00035614,4]
[322440156,1713004238404,-231.95804009,0.00035614,4]
[322440158,1713004238415,-284.64613631,0.00035614,4]
[322440160,1713004238425,-369.05056666,0.00035614,4]
[322440162,1713004238435,-1169.87036919,0.00035614,4]
[322440164,1713004238444,-155.55304906,0.00035614,4]
[322440166,1713004238453,-512.74703097,0.00035614,4]
[322440168,1713004238462,-327.88532073,0.00035614,4]
[322440170,1713004238471,-156.5699296,0.00035614,4]
[322440172,1713004238481,-207.03347943,0.00035614,4]
[322440174,1713004238490,-190.28618432,0.00035614,4]
[322440176,1713004238501,-400.0,0.00035614,2]
[322440178,1713004238513,-605.65032515,0.00035614,4]
[322440180,1713004238522,-155.23479818,0.00035614,4]
[322440182,1713004238533,-155.24218678,0.00035614,4]
[322440184,1713004238543,-259.61843384,0.00035614,4]
[322440186,1713004238553,-225.5768185,0.00035614,4]
[322440188,1713004238562,-1210.76347468,0.00035614,4]
[322440190,1713004238572,-279.48777514,0.00035614,4]
[322440192,1713004238582,-3914.91151105,0.00035614,2]
[322440194,1713004238591,-155.36459307,0.00035614,4]
[322440196,1713004238600,-157.74788196,0.00035614,4]
[322440198,1713004238610,-203.01368722,0.00035614,4]
[322440200,1713004238619,-1904.79965962,0.00035614,4]
[322440202,1713004238630,-2652.0595037,0.00035614,4]
[322440204,1713004238638,-500.0,0.00035615,2]
[322440206,1713004238647,-9088.56662828,0.00035615,5]
[322440208,1713004238656,-388.61611292,0.00035615,7]
[322440210,1713004238670,-63494.94691892,0.00035616,5]
[322440212,1713004238679,-501.19133556,0.00035616,7]
[322440214,1713004238688,-293.0,0.00035616,7]
[322440216,1713004238697,-481.75517932,0.00035616,7]
[322440218,1713004238706,-500.0,0.00035616,7]
[322440220,1713004238715,-1830.15,0.00035616,2]
[322440222,1713004238723,-503.88828186,0.00035616,7]
[322440224,1713004238732,-503.55964822,0.00035616,7]
[322440226,1713004238741,-500.0,0.00035616,7]
[322440228,1713004238750,-500.83121732,0.00035616,7]
[322440230,1713004238760,-500.0,0.00035616,7]
[322440232,1713004238769,-500.0,0.00035616,7]
[322440234,1713004238778,-500.0,0.00035616,7]
[322440236,1713004238787,-500.0,0.00035616,7]
[322440238,1713004238797,-886.93,0.00035616,7]
[322440240,1713004238806,-886.93,0.00035616,7]
[322440241,1713004238815,-886.93,0.00035616,7]
[322440243,1713004238826,-886.93,0.00035616,7]
[322440245,1713004238836,-886.93,0.00035616,7]
[322440247,1713004238845,-886.93,0.00035616,7]
[322440249,1713004238854,-886.93,0.00035616,7]
[322440251,1713004238864,-886.93,0.00035616,7]
[322440253,1713004238874,-886.93,0.00035616,7]
[322440256,1713004238883,-500.0,0.00035616,7]
[322440257,1713004238892,-879.5,0.00035616,7]
[322440260,1713004238902,-501.51977991,0.00035616,7]
[322440261,1713004238913,-1014.05805107,0.00035616,4]
[322440263,1713004238922,-500.0,0.00035616,7]
[322440265,1713004238931,-501.37377778,0.00035616,7]
[322440268,1713004238941,-2282.93,0.00035616,7]
[322440270,1713004238953,-500.0,0.00035616,7]
[322440272,1713004238962,-500.0,0.00035616,7]
[322440274,1713004238971,-512.89323581,0.00035616,7]
[322440276,1713004238982,-563.04684633,0.00035616,7]
[322440278,1713004238991,-914.49,0.00035616,7]
[322440280,1713004239000,-508.45342757,0.00035616,7]
[322440282,1713004239010,-500.0,0.00035616,7]
[322440284,1713004239020,-500.0,0.00035616,7]
[322440286,1713004239029,-513.10504272,0.00035616,7]
[322440287,1713004239038,-500.0,0.00035616,7]
[322440290,1713004239048,-501.56647193,0.00035616,7]
[322440292,1713004239057,-500.0,0.00035616,7]
[322440294,1713004239066,-500.0,0.00035616,7]
[322440295,1713004239076,-500.0,0.00035616,7]
[322440297,1713004239086,-500.0,0.00035616,7]
[322440299,1713004239095,-500.0,0.00035616,7]
[322440301,1713004239105,-518.88335223,0.00035616,7]
[322440303,1713004239114,-500.0,0.00035616,7]
[322440305,1713004239123,-500.0,0.00035616,7]
[322440307,1713004239133,-305.78899216,0.00035616,7]
[322440309,1713004239142,-219.50666895,0.00035616,7]
[322440311,1713004239152,-500.0,0.00035616,7]
[322440313,1713004239162,-500.0,0.00035616,7]
[322440315,1713004239171,-500.0,0.00035616,7]
[322440317,1713004239180,-500.0,0.00035616,7]
[322440319,1713004239190,-500.0,0.00035616,7]
[322440321,1713004239199,-500.0,0.00035616,7]
[322440323,1713004239208,-501.64592472,0.00035616,7]
[322440325,1713004239218,-234.09076819,0.00035616,7]
[322440327,1713004239227,-500.0,0.00035616,7]
[322440329,1713004239237,-500.0,0.00035616,7]
[322440331,1713004239247,-500.0,0.00035616,7]
[322440333,1713004239257,-500.0,0.00035616,7]
[322440335,1713004239266,-482.63853284,0.00035616,7]
[322440337,1713004239275,-500.0,0.00035616,7]
[322440339,1713004239284,-507.89043381,0.00035616,7]
[322440341,1713004239293,-500.0,0.00035616,7]
[322440343,1713004239318,-500.0,0.00035616,7]
[322440345,1713004239328,-500.0,0.00035616,7]
[322440347,1713004239337,-500.0,0.00035616,7]
[322440349,1713004239347,-529.60230048,0.00035616,7]
[322440350,1713004239356,-521.08070212,0.00035616,7]
[322440351,1713004239365,-500.0,0.00035616,7]
[322440352,1713004239375,-505.82341334,0.00035616,7]
[322440353,1713004239383,-500.0,0.00035616,7]
[322440354,1713004239392,-985.55,0.00035616,7]
[322440355,1713004239402,-500.0,0.00035616,7]
[322440356,1713004239412,-500.0,0.00035616,7]
[322440358,1713004239423,-3993.62,0.00035616,7]
[322440360,1713004239434,-500.0,0.00035616,7]
[322440362,1713004239444,-500.0,0.00035616,7]
[322440364,1713004239454,-500.0,0.00035616,7]
[322440366,1713004239463,-625.23,0.00035616,7]
[322440368,1713004239472,-500.0,0.00035616,7]
[322440370,1713004239482,-500.0,0.00035616,7]
[322440372,1713004239491,-500.0,0.00035616,7]
[322440374,1713004239500,-500.0,0.00035616,7]
[322440375,1713004239513,-523.06514236,0.00035616,7]
[322440377,1713004239522,-1372.74,0.00035616,7]
[322440379,1713004239531,-500.0,0.00035616,7]
[322440381,1713004239541,-500.0,0.00035616,7]
[322440383,1713004239551,-500.0,0.00035616,7]
[322440385,1713004239560,-501.63398717,0.00035616,7]
[322440388,1713004239569,-500.0,0.00035616,7]
[322440389,1713004239578,-599.33,0.00035616,7]
[322440391,1713004239588,-969.87,0.00035616,7]
[322440393,1713004239597,-500.0,0.00035616,7]
[322440395,1713004239606,-500.0,0.00035616,7]
[322440397,1713004239615,-509.49711825,0.00035616,7]
[322440399,1713004239624,-1373.41,0.00035616,7]
[322440401,1713004239633,-328.87,0.00035616,2]
[322440403,1713004239643,-500.0,0.00035616,7]
[322440405,1713004239652,-500.0,0.00035616,7]
[322440407,1713004239662,-500.0,0.00035616,7]
[322440409,1713004239671,-500.0,0.00035616,7]
[322440411,1713004239680,-500.0,0.00035616,7]
[322440413,1713004239688,-500.0,0.00035616,7]
[322440415,1713004239697,-502.47181496,0.00035616,7]
[322440417,1713004239706,-714.11,0.00035616,7]
[322440419,1713004239715,-500.0,0.00035616,7]
[322440421,1713004239724,-6787.89,0.00035616,7]
[322440423,1713004239732,-500.0,0.00035616,7]
[322440425,1713004239741,-500.0,0.00035616,7]
[322440427,1713004239750,-619.20929098,0.00035616,7]
[322440429,1713004239760,-1153.08,0.00035616,7]
[322440431,1713004239769,-500.0,0.00035616,7]
[322440433,1713004239778,-1284.43,0.00035616,7]
[322440435,1713004239787,-309.73189997,0.00035616,7]
[322440437,1713004239796,-770.38,0.00035616,7]
[322440439,1713004239805,-500.0,0.00035616,7]
[322440441,1713004239814,-2591.27,0.00035616,7]
[322440443,1713004239823,-500.0,0.00035616,7]
[322440445,1713004239832,-500.0,0.00035616,7]
[322440447,1713004239842,-507.86226408,0.00035616,7]
[322440449,1713004239851,-500.0,0.00035616,7]
[322440451,1713004239860,-500.0,0.00035616,7]
[322440453,1713004239869,-500.0,0.00035616,7]
[322440455,1713004239879,-500.0,0.00035616,7]
[322440457,1713004239888,-2731.71,0.00035616,7]
[322440459,1713004239897,-500.0,0.00035616,7]
[322440462,1713004239915,-823.99,0.00035616,7]
[322440465,1713004239928,-500.0,0.00035616,7]
[322440467,1713004239937,-221.02911687,0.00035616,7]
[322440469,1713004239947,-500.0,0.00035616,7]
[322440471,1713004239957,-500.0,0.00035616,7]
[322440473,1713004239966,-500.0,0.00035616,7]
[322440475,1713004239976,-500.0,0.00035616,7]
[322440477,1713004239985,-803.9,0.00035616,7]
[322440479,1713004239995,-500.0,0.00035616,7]
[322440481,1713004240004,-500.70333119,0.00035616,7]
[322440483,1713004240014,-500.0,0.00035616,7]
[322440485,1713004240024,-949.27,0.00035616,7]
[322440487,1713004240033,-500.0,0.00035616,7]
[322440489,1713004240043,-500.0,0.00035616,7]
[322440491,1713004240052,-500.0,0.00035616,7]
[322440494,1713004240062,-500.0,0.00035616,7]
[322440496,1713004240072,-502.83471538,0.00035616,7]
[322440498,1713004240082,-2459.72,0.00035616,7]
[322440500,1713004240092,-2700.6,0.00035616,7]
[322440502,1713004240101,-500.0,0.00035616,7]
[322440504,1713004240111,-500.0,0.00035616,7]
[322440506,1713004240120,-500.0,0.00035616,7]
[322440509,1713004240129,-500.0,0.00035616,7]
[322440511,1713004240138,-500.0,0.00035616,7]
[322440514,1713004240148,-1093.07,0.00035616,7]
[322440517,1713004240157,-500.0,0.00035616,7]
[322440520,1713004240169,-500.0,0.00035616,7]
[322440523,1713004240178,-500.0,0.00035616,7]
[322440526,1713004240188,-500.0,0.00035616,7]
[322440529,1713004240197,-500.0,0.00035616,7]
[322440532,1713004240206,-500.0,0.00035616,7]
[322440535,1713004240215,-1009.69,0.00035616,7]
[322440538,1713004240224,-503.91995,0.00035616,7]
[322440541,1713004240235,-2219.09,0.00035616,7]
[322440544,1713004240245,-500.0,0.00035616,7]
[322440547,1713004240254,-500.0,0.00035616,7]
[322440550,1713004240263,-885.06,0.00035616,7]
[322440552,1713004240273,-501.31569427,0.00035616,7]
[322440554,1713004240283,-500.0,0.00035616,7]
[322440556,1713004240292,-1457.53,0.00035616,7]
[322440558,1713004240301,-500.0,0.00035616,7]
[322440560,1713004240311,-9990.67,0.00035616,7]
[322440562,1713004240320,-500.0,0.00035616,7]
[322440565,1713004240330,-500.0,0.00035616,7]
[322440567,1713004240339,-500.0,0.00035616,7]
[322440569,1713004240348,-500.0,0.00035616,7]
[322440571,1713004240357,-503.17589893,0.00035616,7]
[322440573,1713004240366,-500.0,0.00035616,7]
[322440575,1713004240375,-373.7590933,0.00035616,7]
[322440577,1713004240386,-500.0,0.00035616,7]
[322440594,1713004240540,-500.0,0.00035616,7]
[322440596,1713004240551,-502.63757926,0.00035616,7]
[322440599,1713004240560,-793.16,0.00035616,7]
[322440601,1713004240569,-500.0,0.00035616,7]
[322440602,1713004240579,-500.0,0.00035616,7]
[322440604,1713004240589,-508.3973965,0.00035616,7]
[322440606,1713004240598,-500.0,0.00035616,7]
[322440608,1713004240607,-500.0,0.00035616,7]
[322440610,1713004240616,-501.78,0.00035616,7]
[322440612,1713004240625,-500.0,0.00035616,7]
[322440614,1713004240634,-500.0,0.00035616,7]
[322440616,1713004240644,-535.21305459,0.00035616,7]
[322440618,1713004240654,-730.3,0.00035616,7]
[322440620,1713004240664,-579.86036251,0.00035616,7]
[322440622,1713004240675,-500.0,0.00035616,7]
[322440624,1713004240684,-500.0,0.00035616,7]
[322440627,1713004240693,-500.6711624,0.00035616,7]
[322440629,1713004240703,-500.0,0.00035616,7]
[322440631,1713004240711,-500.0,0.00035616,7]
[322440633,1713004240721,-503.56911168,0.00035616,7]
[322440634,1713004240730,-501.99555559,0.00035616,7]
[322440637,1713004240739,-500.0,0.00035616,7]
[322440639,1713004240748,-506.63996995,0.00035616,7]
[322440641,1713004240758,-500.0,0.00035616,7]
[322440643,1713004240767,-552.97227873,0.00035616,7]
[322440645,1713004240777,-500.0,0.00035616,7]
[322440646,1713004240786,-33560.56,0.00035616,7]
[322440649,1713004240795,-502.83852805,0.00035616,7]
[322440651,1713004240805,-502.32468298,0.00035616,7]
[322440653,1713004240817,-1138.42,0.00035616,7]
[322440655,1713004240827,-383.59741185,0.00035616,7]
[322440657,1713004240836,-500.0,0.00035616,7]
[322440659,1713004240845,-500.0,0.00035616,7]
[322440661,1713004240855,-500.0,0.00035616,7]
[322440663,1713004240864,-501.09936948,0.00035616,7]
[322440664,1713004240874,-500.0,0.00035616,7]
[322440667,1713004240883,-500.0,0.00035616,7]
[322440668,1713004240893,-500.0,0.00035616,7]
[322440670,1713004240902,-2698.06,0.00035616,7]
[322440672,1713004240913,-500.0,0.00035616,7]
[322440674,1713004240922,-500.0,0.00035616,7]
[322440676,1713004240932,-1052.99,0.00035616,7]
[322440678,1713004240942,-500.0,0.00035616,7]
[322440681,1713004240951,-500.0,0.00035616,7]
[322440683,1713004240961,-500.0,0.00035616,7]
[322440685,1713004240970,-500.0,0.00035616,7]
[322440687,1713004240979,-504.2004915,0.00035616,7]
[322440689,1713004240989,-500.0,0.00035616,7]
[322440691,1713004240998,-500.0,0.00035616,7]
[322440693,1713004241007,-503.14909925,0.00035616,7]
[322440695,1713004241017,-2271.31,0.00035616,7]
[322440697,1713004241027,-503.33800379,0.00035616,7]
[322440699,1713004241036,-504.16077056,0.00035616,7]
[322440701,1713004241045,-500.0,0.00035616,7]
[322440703,1713004241055,-500.0,0.00035616,7]
[322440704,1713004241067,-500.0,0.00035616,7]
[322440706,1713004241077,-500.0,0.00035616,7]
[322440708,1713004241086,-1007.69,0.00035616,7]
[322440710,1713004241096,-500.0,0.00035616,7]
[322440712,1713004241105,-500.0,0.00035616,7]
[322440715,1713004241115,-501.59222558,0.00035616,7]
[322440717,1713004241124,-1391.59,0.00035616,7]
[322440718,1713004241133,-500.60506691,0.00035616,7]
[322440721,1713004241142,-500.0,0.00035616,7]
[322440722,1713004241152,-500.69347497,0.00035616,7]
[322440725,1713004241162,-500.82768302,0.00035616,7]
[322440726,1713004241171,-500.0,0.00035616,7]
[322440728,1713004241180,-1988.21,0.00035616,7]
[322440730,1713004241190,-500.0,0.00035616,7]
[322440732,1713004241199,-500.0,0.00035616,7]
[322440734,1713004241208,-501.39451573,0.00035616,7]
[322440736,1713004241217,-500.0,0.00035616,7]
[322440738,1713004241227,-500.0,0.00035616,7]
[322440740,1713004241236,-500.0,0.00035616,7]
[322440742,1713004241247,-500.0,0.00035616,7]
[322440745,1713004241256,-502.80203795,0.00035616,7]
[322440747,1713004241266,-500.0,0.00035616,7]
[322440748,1713004241275,-500.0,0.00035616,7]
[322440750,1713004241285,-500.0,0.00035616,7]
[322440752,1713004241295,-501.15222337,0.00035616,7]
[322440755,1713004241304,-610.21924403,0.00035616,7]
[322440757,1713004241313,-220.0,0.0003589,2]
[322440759,1713004241323,-151.51526625,0.00035998,2]
[322440761,1713004241333,-220.0,0.00036,2]
[322440762,1713004241342,-154.9721438,0.00036337,7]
[322440764,1713004241351,-175.286389,0.00036517,2]
[322440767,1713004241360,-154.9721438,0.00036651,7]
[322440768,1713004241370,-1000.0,0.000368,16]
[322440770,1713004241378,-5711.91270546,0.00036875,2]
[322440772,1713004241388,-589.45197431,0.00036986,7]
[322440774,1713004241397,-150.0,0.00036998,2]
[322440776,1713004241406,-2045.13777758,0.00037,2]
[322440778,1713004241416,-220.0,0.00037397,2]
[322440780,1713004241426,-2000.0,0.00037434,2]
[322440782,1713004241435,-2326.13839683,0.00037526,2]
[322440784,1713004241444,-886.93,0.00037533,7]
[322440786,1713004241453,-886.93,0.00037533,7]
[322440788,1713004241462,-886.93,0.00037533,7]
[322440790,1713004241471,-886.93,0.00037533,7]
[322440792,1713004241480,-886.93,0.00037533,7]
[322440794,1713004241489,-3069.4136319,0.00037534,20]
[322440796,1713004241499,-500.0,0.00037534,7]
[322440798,1713004241511,-503.27185561,0.00037534,7]
[322440800,1713004241520,-500.0,0.00037534,7]
[322440802,1713004241529,-710.43,0.00037534,7]
[322440804,1713004241538,-500.0,0.00037534,7]
[322440806,1713004241548,-500.0,0.00037534,7]
[322440808,1713004241557,-616.89,0.00037534,7]
[322440810,1713004241567,-511.08378586,0.00037534,7]
[322440812,1713004241577,-285.86260697,0.00037534,7]
[322440814,1713004241588,-500.0,0.00037534,7]
[322440816,1713004241598,-500.4774247,0.00037534,7]
[322440818,1713004241607,-500.0,0.00037534,7]
[322440820,1713004241617,-1606.69,0.00037534,7]
[322440822,1713004241626,-500.0,0.00037534,7]
[322440824,1713004241636,-332.38896845,0.00037534,7]
[322440826,1713004241645,-500.0,0.00037534,7]
[322440828,1713004241655,-500.0,0.00037534,7]
[322440831,1713004241666,-502.35220558,0.00037534,7]
[322440833,1713004241675,-500.0,0.00037534,7]
[322440834,1713004241684,-500.0,0.00037534,7]
[322440837,1713004241693,-500.0,0.00037534,7]
[322440839,1713004241707,-500.0,0.00037534,7]
[322440842,1713004241720,-1830.15,0.00037534,2]
[322440844,1713004241732,-500.0,0.00037534,7]
[322440846,1713004241745,-500.0,0.00037534,7]
[322440849,1713004241757,-500.0,0.00037534,7]
[322440851,1713004241769,-500.0,0.00037534,7]
[322440853,1713004241778,-500.0,0.00037534,7]
[322440855,1713004241790,-879.5,0.00037534,7]
[322440858,1713004241802,-500.0,0.00037534,7]
[322440860,1713004241813,-2282.93,0.00037534,7]
[322440862,1713004241825,-500.0,0.00037534,7]
[322440864,1713004241837,-503.57901693,0.00037534,7]
[322440867,1713004241849,-914.49,0.00037534,7]
[322440869,1713004241861,-516.88435255,0.00037534,7]
[322440871,1713004241872,-500.0,0.00037534,7]
[322440874,1713004241884,-500.0,0.00037534,7]
[322440876,1713004241893,-500.0,0.00037534,7]
[322440878,1713004241903,-500.0,0.00037534,7]
[322440880,1713004241915,-500.0,0.00037534,7]
[322440882,1713004241927,-500.0,0.00037534,7]
[322440884,1713004241938,-507.82013399,0.00037534,7]
[322440887,1713004241950,-500.0,0.00037534,7]
[322440889,1713004241961,-500.0,0.00037534,7]
[322440891,1713004241972,-500.0,0.00037534,7]
[322440894,1713004241984,-500.0,0.00037534,7]
[322440896,1713004241997,-500.0,0.00037534,7]
[322440898,1713004242010,-500.0,0.00037534,7]
[322440901,1713004242021,-500.0,0.00037534,7]
[322440903,1713004242034,-500.0,0.00037534,7]
[322440905,1713004242044,-985.55,0.00037534,7]
[322440908,1713004242057,-500.0,0.00037534,7]
[322440910,1713004242069,-500.0,0.00037534,7]
[322440912,1713004242079,-3993.62,0.00037534,7]
[322440914,1713004242092,-500.0,0.00037534,7]
[322440917,1713004242103,-500.0,0.00037534,7]
[322440919,1713004242114,-625.23,0.00037534,7]
[322440921,1713004242126,-500.0,0.00037534,7]
[322440923,1713004242138,-644.05902926,0.00037534,7]
[322440926,1713004242150,-500.0,0.00037534,7]
[322440928,1713004242161,-1372.74,0.00037534,7]
[322440930,1713004242174,-500.0,0.00037534,7]
[322440933,1713004242186,-500.0,0.00037534,7]
[322440935,1713004242198,-599.33,0.00037534,7]
[322440937,1713004242210,-969.87,0.00037534,7]
[322440939,1713004242221,-500.0,0.00037534,7]
[322440942,1713004242234,-500.0,0.00037534,7]
[322440944,1713004242245,-1373.41,0.00037534,7]
[322440946,1713004242255,-500.0,0.00037534,7]
[322440948,1713004242265,-500.0,0.00037534,7]
[322440950,1713004242275,-500.0,0.00037534,7]
[322440952,1713004242284,-500.0,0.00037534,7]
[322440954,1713004242294,-500.0,0.00037534,7]
[322440956,1713004242304,-714.11,0.00037534,7]
[322440959,1713004242315,-500.0,0.00037534,7]
[322440961,1713004242327,-6787.89,0.00037534,7]
[322440963,1713004242338,-500.0,0.00037534,7]
[322440965,1713004242348,-500.0,0.00037534,7]
[322440968,1713004242360,-1153.08,0.00037534,7]
[322440970,1713004242370,-1284.43,0.00037534,7]
[322440972,1713004242380,-770.38,0.00037534,7]
[322440974,1713004242390,-2591.27,0.00037534,7]
[322440976,1713004242400,-500.0,0.00037534,7]
[322440979,1713004242410,-500.0,0.00037534,7]
[322440981,1713004242425,-592.01626053,0.00037534,7]
[322440983,1713004242435,-2731.71,0.00037534,7]
[322440985,1713004242445,-823.99,0.00037534,7]
[322440987,1713004242458,-500.0,0.00037534,7]
[322440989,1713004242468,-803.9,0.00037534,7]
[322440991,1713004242479,-500.0,0.00037534,7]
[322440994,1713004242490,-500.0,0.00037534,7]
[322440996,1713004242501,-949.27,0.00037534,7]
[322440998,1713004242514,-500.0,0.00037534,7]
[322441000,1713004242524,-500.0,0.00037534,7]
[322441002,1713004242534,-500.0,0.00037534,7]
[322441004,1713004242545,-500.0,0.00037534,7]
[322441006,1713004242555,-2459.72,0.00037534,7]
[322441009,1713004242565,-2700.6,0.00037534,7]
[322441011,1713004242576,-500.0,0.00037534,7]
[322441013,1713004242587,-1093.07,0.00037534,7]
[322441015,1713004242597,-500.0,0.00037534,7]
[322441017,1713004242608,-500.0,0.00037534,7]
[322441019,1713004242618,-502.59759276,0.00037534,7]
[322441021,1713004242629,-2219.09,0.00037534,7]
[322441024,1713004242639,-1009.69,0.00037534,7]
[322441026,1713004242649,-885.06,0.00037534,7]
[322441029,1713004242660,-500.0,0.00037534,7]
[322441031,1713004242673,-1457.53,0.00037534,7]
[322441033,1713004242683,-500.0,0.00037534,7]
[322441035,1713004242693,-9990.67,0.00037534,7]
[322441037,1713004242704,-500.0,0.00037534,7]
[322441039,1713004242714,-500.0,0.00037534,7]
[322441041,1713004242724,-500.0,0.00037534,7]
[322441044,1713004242735,-500.0,0.00037534,7]
[322441046,1713004242745,-500.0,0.00037534,7]
[322441048,1713004242755,-793.16,0.00037534,7]
[322441050,1713004242765,-500.0,0.00037534,7]
[322441052,1713004242776,-500.0,0.00037534,7]
[322441054,1713004242786,-500.0,0.00037534,7]
[322441057,1713004242797,-500.0,0.00037534,7]
[322441059,1713004242807,-501.78,0.00037534,7]
[322441062,1713004242818,-730.3,0.00037534,7]
[322441065,1713004242828,-500.0,0.00037534,7]
[322441067,1713004242839,-500.0,0.00037534,7]
[322441069,1713004242850,-500.0,0.00037534,7]
[322441071,1713004242860,-33560.56,0.00037534,7]
[322441074,1713004242871,-1138.42,0.00037534,7]
[322441076,1713004242881,-500.0,0.00037534,7]